bitfinex-derivatives/quotes_ETHF0:USTF0_20250807
["timestamp","ask_amount","ask_price","bid_price","bid_amount"]
[1754556556561,1.4143,3714.7,3714.6,1.7012]
[1754556557162,1.2216,3714.7,3714.6,2.23949]
[1754556557364,1.2216,3714.7,3714.6,1.7012]
[1754556557554,1.4143,3714.7,3714.6,1.7012]
[1754556557757,1.5793,3714.7,3714.6,1.7012]
[1754556559660,1.4143,3714.7,3714.6,1.7012]
[1754556559859,1.2216,3714.7,3714.6,1.7012]
[1754556560265,4.8113,3714.7,3714.6,1.7012]
[1754556561362,5.169,3714.7,3714.6,1.7012]
[1754556565662,3.5897,3714.7,3714.6,1.7012]
[1754556569568,3.7858,3714.7,3714.6,1.7012]
[1754556569764,4.2504,3714.7,3714.6,1.7012]
[1754556571172,4.5533,3714.7,3714.6,1.7012]
[1754556572170,4.0887,3714.7,3714.6,1.7012]
[1754556572474,4.8615,3714.7,3714.6,1.7012]
[1754556573572,5.222,3714.7,3714.6,1.7012]
[1754556574674,4.8615,3714.7,3714.6,1.7012]
[1754556575971,4.094,3714.7,3714.6,1.7012]
[1754556576161,3.5897,3714.7,3714.6,1.7012]
[1754556576861,4.2504,3714.7,3714.6,1.7012]
[1754556577067,5.222,3714.7,3714.6,0.2958]
[1754556577469,4.0887,3714.7,3714.6,1.7361]
[1754556578372,4.8615,3714.7,3714.6,1.7361]
[1754556578775,5.222,3714.7,3714.6,1.7361]
[1754556581082,4.4545,3714.7,3714.6,0.993]
[1754556581275,5.222,3714.7,3714.6,1.7361]
[1754556582372,4.094,3714.7,3714.6,1.7361]
[1754556583077,4.5586,3714.7,3714.6,1.7361]
[1754556583271,4.8615,3714.7,3714.6,1.7361]
[1754556584675,5.0263,3714.7,3714.6,1.7361]
[1754556585168,5.85481437,3714.7,3714.6,1.7361]
[1754556586172,5.69001437,3714.7,3714.6,1.7361]
[1754556586677,5.85481437,3714.7,3714.6,1.7361]
[1754556586980,5.69001437,3714.7,3714.6,1.7361]
[1754556587280,4.41821437,3714.7,3714.6,1.7361]
[1754556587680,5.69001437,3714.7,3714.6,1.7361]
[1754556589073,6.05051437,3714.7,3714.6,1.7361]
[1754556589479,4.41821437,3714.7,3714.6,1.7361]
[1754556589783,1.7318,3714.7,3714.6,1.7361]
[1754556589977,0.23408,3714.7,3714.6,1.7361]
[1754556590276,0.9636,3715.5,3715.1,0.1981]
[1754556590472,1.12990375,3715.6,3715.3,0.1981]
[1754556590473,2.08781954,3715.4,3715.3,0.1981]
[1754556590673,2.08781954,3715.4,3715.3,0.4956]
[1754556590874,2.39601954,3715.4,3715.3,0.4956]
[1754556591374,1.13711954,3715.4,3715.3,0.4956]
[1754556592379,0.3082,3715.4,3715.3,0.4956]
[1754556592569,1.2718,3715.4,3715.3,0.4956]
[1754556592773,1.5671,3715.4,3715.3,0.4956]
[1754556593373,5.3525,3715.4,3715.3,0.4956]
[1754556593675,4.3969,3715.4,3715.3,0.4956]
[1754556594881,4.8615,3715.4,3715.3,0.4956]
[1754556595276,5.1568,3715.4,3715.3,0.4956]
[1754556595482,5.3525,3715.4,3715.3,0.4956]
[1754556596584,5.1568,3715.4,3715.3,0.4956]
[1754556596784,5.3525,3715.4,3715.3,0.4956]
[1754556597479,0.3082,3715.3,3715.2,0.53819]
[1754556597785,1.7628,3715.3,3715.2,0.53819]
[1754556600389,5.3525,3715.3,3715.2,0.53819]
[1754556602183,6.18374408,3715.3,3715.2,0.53819]
[1754556603486,6.18374489,3715.3,3715.2,0.53819]
[1754556603785,5.3525,3715.3,3715.2,0.53819]
[1754556604184,5.3525,3715.3,3715.2,0.81879]
[1754556604384,3.8979,3715.3,3715.2,1.01329]
[1754556604582,3.5897,3715.3,3715.2,1.01329]
[1754556605288,3.5897,3715.3,3715.2,1.22509556]
[1754556606686,1.24679,3715.3,3715.2,1.22509556]
[1754556606886,1e-05,3715.3,3715.2,1.22509556]
[1754556608093,0.2893,3716.4,3716.3,0.53804]
[1754556608284,0.791,3716.4,3716.3,0.53804]
[1754556608486,0.2893,3716.4,3716.3,0.53804]
[1754556608884,0.791,3716.4,3716.3,0.53804]
[1754556611089,4.3807,3716.4,3716.3,0.53804]
[1754556613091,4.8148,3716.4,3716.3,0.53804]
[1754556613389,5.2901,3716.4,3716.3,0.53804]
[1754556614882,4.3807,3716.4,3716.3,0.53804]
[1754556615282,3.5897,3716.4,3716.3,0.53804]
[1754556616090,3.879,3716.4,3716.3,0.53804]
[1754556618295,3.5897,3716.4,3716.3,0.53804]
[1754556618693,1.89664,3716.4,3716.3,0.53804]
[1754556618892,0.54697245,3716.7,3716.6,0.538]
[1754556619093,0.54697245,3716.7,3716.6,18.907]
[1754556620191,0.84987245,3716.7,3716.6,18.907]
[1754556621490,0.54697245,3716.7,3716.6,18.907]
[1754556622186,4.13667245,3716.7,3716.6,18.907]
[1754556622592,4.63837245,3716.7,3716.6,18.907]
[1754556622793,5.54777245,3716.7,3716.6,18.907]
[1754556623598,5.11367245,3716.7,3716.6,18.907]
[1754556626400,3.84737245,3716.7,3716.6,18.907]
[1754556626698,4.13667245,3716.7,3716.6,18.907]
[1754556629201,4.13667245,3716.7,3716.6,18.9079]
[1754556629795,4.42677245,3716.7,3716.6,18.9079]
[1754556630100,3.29448245,3716.7,3716.6,18.9079]
[1754556630297,3.57948245,3716.7,3716.6,18.9079]
[1754556630504,2.44532245,3716.7,3716.6,18.9079]
[1754556630996,1.6721,3717.9,3717.8,0.53783]
[1754556631201,1.6721,3717.9,3717.8,18.88583]
[1754556634107,5.2618,3717.9,3717.8,18.88583]
[1754556639601,5.2618,3717.9,3716.7,1.34497]
[1754556639602,4.5367,3717.9,3717.1,1.34481]
[1754556639803,1.2017,3717.7,3717.6,0.53785]
[1754556640006,1.6721,3717.7,3717.6,0.53785]
[1754556640205,5.2618,3717.7,3717.6,0.53785]
[1754556642107,5.2618,3717.7,3717.5,18.345]
[1754556642108,5.2618,3717.7,3717.5,18.88287]
[1754556642309,1.6721,3717.6,3717.5,18.88287]
[1754556642512,1.0101,3717.5,3716.9,1.34488]
[1754556642713,1.0101,3717.5,3716.2,0.4514]
[1754556642714,1.6721,3717.0,3716.8,0.53797]
[1754556643012,1.6721,3717.0,3716.9,18.343]
[1754556644017,0.662,3717.0,3716.9,18.345]
[1754556644513,0.662,3717.0,3716.9,18.344]
[1754556644716,1.6721,3717.0,3716.9,18.344]
[1754556645113,1.6721,3717.0,3716.1,1.3452]
[1754556645114,0.7251,3716.8,3716.1,1.3452]
[1754556645320,1.6721,3716.2,3716.1,1.29348]
[1754556645610,1.6721,3716.2,3716.1,18.88608]
[1754556646205,1.6721,3716.2,3716.0,0.53808]
[1754556646410,1.6721,3716.1,3716.0,0.53808]
[1754556646618,1.6721,3716.1,3716.0,18.89308]
[1754556646823,1.6721,3716.1,3716.0,18.355]
[1754556647110,0.435,3716.0,3715.9,39.2631]
[1754556647315,1.6721,3716.0,3715.9,57.6161]
[1754556647616,1.6721,3716.0,3715.9,39.2631]
[1754556647808,1.6721,3716.0,3715.9,57.6161]
[1754556649018,1.6721,3716.0,3715.9,58.0675]
[1754556650319,5.2618,3716.0,3715.9,58.0675]
[1754556651623,5.2618,3716.0,3715.9,19.6465]
[1754556652715,4.8268,3716.0,3715.9,19.3997]
[1754556652916,3.5897,3716.0,3715.9,20.6533]
[1754556654323,3.8747,3716.0,3715.9,20.6533]
[1754556656423,5.2618,3716.0,3715.9,20.6533]
[1754556656624,3.8747,3716.0,3715.9,20.6533]
[1754556656818,3.5897,3716.0,3715.9,20.6533]
[1754556658725,3.8747,3716.0,3715.9,20.6533]
[1754556658927,4.1648,3716.0,3715.9,20.6533]
[1754556659828,4.0663,3716.0,3715.9,20.6533]
[1754556660033,5.2801,3716.0,3715.9,20.3472]
[1754556660721,5.2801,3716.0,3715.9,19.1951]
[1754556661123,5.2801,3716.0,3715.9,0.8421]
[1754556661321,5.2801,3716.0,3715.9,19.1971]
[1754556662021,5.2801,3716.0,3715.9,19.6196]
[1754556662216,5.2801,3716.0,3715.9,20.1166]
[1754556662421,5.2801,3716.0,3715.9,20.307]
[1754556663727,5.2801,3716.0,3715.9,1.6504]
[1754556664025,5.2801,3716.0,3715.9,18.8891]
[1754556666531,5.2801,3716.0,3715.9,19.5961]
[1754556667833,5.2801,3716.0,3715.9,19.7915]
[1754556668033,5.2801,3716.0,3715.9,20.0931]
[1754556668632,5.2801,3716.0,3715.9,20.2835]
[1754556670535,4.0703,3716.0,3715.9,20.581]
[1754556670836,4.3587,3716.0,3715.9,20.581]
[1754556671039,3.5897,3716.0,3715.9,20.581]
[1754556671733,3.8734,3716.0,3715.9,20.581]
[1754556671929,5.2801,3716.0,3715.9,20.2835]
[1754556672137,5.2801,3716.0,3715.9,18.8851]
[1754556672338,5.2801,3716.0,3715.9,19.5921]
[1754556672634,5.2801,3716.0,3715.9,20.2795]
[1754556673831,5.2801,3716.0,3715.9,20.577]
[1754556676538,3.5897,3716.0,3715.9,20.2795]
[1754556676834,4.1618,3716.0,3715.9,20.577]
[1754556677030,4.9818,3716.0,3715.9,20.577]
[1754556677223,5.2801,3716.0,3715.9,20.577]
[1754556677736,5.2801,3716.0,3715.9,20.2795]
[1754556681436,5.2801,3716.0,3715.9,1.9325]
[1754556681632,3.8734,3716.0,3715.9,18.8851]
[1754556681940,5.2801,3716.0,3715.9,20.2795]
[1754556685928,4.0703,3716.0,3715.9,20.577]
[1754556686131,4.657,3716.0,3715.9,20.577]
[1754556686339,5.2801,3716.0,3715.9,17.577]
[1754556686943,5.2801,3716.0,3715.9,18.1151]
[1754556689945,4.2614,3716.0,3715.9,18.1151]
[1754556690144,4.5472,3716.0,3715.9,18.1151]
[1754556690546,3.8693,3716.0,3715.9,18.1116]
[1754556691045,3.5897,3716.0,3715.9,18.1116]
[1754556691449,3.8693,3716.0,3715.9,18.1116]
[1754556692647,4.1551,3716.0,3715.9,18.1116]
[1754556693744,3.5897,3716.0,3715.9,18.1116]
[1754556696743,2.75530001,3716.0,3715.9,18.1116]
[1754556696939,0.2796,3716.6,3715.9,18.1116]
[1754556697148,0.2796,3716.6,3716.5,1.22502]
[1754556697451,0.7666,3716.6,3716.5,20.58862]
[1754556697948,0.2858,3717.2,3716.6,1.34502]
[1754556698153,1.95740697,3717.1,3717.0,1.7056]
[1754556698453,1.95740697,3717.1,3717.0,20.0506]
[1754556698649,2.07990697,3717.1,3717.0,20.29455]
[1754556698950,2.52280697,3717.1,3717.0,20.58855]
[1754556699448,1.694,3717.1,3717.0,20.58855]
[1754556700458,5.2837,3717.1,3717.0,20.58855]
[1754556700650,3.5897,3717.1,3717.0,20.58855]
[1754556701146,3.04887,3717.1,3717.0,20.58855]
[1754556701347,2.43896,3717.1,3717.0,20.58855]
[1754556701548,0.82626001,3717.1,3717.0,20.58855]
[1754556701748,0.11802001,3717.1,3717.0,20.58855]
[1754556702453,1e-08,3717.1,3717.0,20.58855]
[1754556705454,0.2796,3717.4,3717.3,2.2435]
[1754556705649,0.2796,3717.4,3717.3,20.5845]
[1754556706854,0.5654,3717.4,3717.3,20.5845]
[1754556707253,0.4429,3717.7,3717.6,0.53786]
[1754556707557,1.2511,3717.7,3717.6,19.85886]
[1754556707955,1.2511,3717.7,3717.6,20.58346]
[1754556708658,4.8408,3717.7,3717.6,20.58346]
[1754556709462,5.2837,3717.7,3717.6,20.58346]
[1754556709752,5.2837,3717.7,3717.6,20.793683]
[1754556710154,5.2837,3717.7,3717.6,20.499683]
[1754556710357,5.2837,3717.7,3717.6,20.28946]
[1754556710556,5.2837,3717.7,3717.6,19.36856]
[1754556710757,5.2837,3717.7,3717.6,19.79736]
[1754556710959,5.2837,3717.7,3717.6,1.45736]
[1754556711163,5.2837,3717.7,3717.6,19.79636]
[1754556713464,5.2837,3717.7,3717.6,0.53786]
[1754556713656,5.2837,3717.7,3717.6,18.87586]
[1754556714761,5.2837,3717.7,3717.6,0.53786]
[1754556714961,5.2837,3717.7,3717.6,18.87586]
[1754556716966,5.2837,3717.7,3717.6,20.09116]
[1754556717268,5.2837,3717.7,3717.6,19.79536]
[1754556719271,5.2837,3717.7,3717.6,18.87586]
[1754556720363,3.5897,3717.7,3717.6,18.87586]
[1754556720566,4.9054,3717.7,3717.6,20.26876]
[1754556720761,4.9054,3717.7,3717.6,20.57726]
[1754556722264,5.3329,3717.7,3717.6,20.57726]
[1754556722971,4.0916,3717.7,3717.6,20.57726]
[1754556723170,3.899,3717.7,3717.6,20.57726]
[1754556723371,3.5897,3717.7,3717.6,20.57726]
[1754556725475,3.899,3717.7,3717.6,20.57726]
[1754556726077,0.53766,3719.0,3717.6,20.57726]
[1754556726078,0.1926,3719.3,3719.2,0.53763]
[1754556726271,1.7432,3719.3,3719.2,18.88863]
[1754556729272,1.7432,3719.3,3718.8,1.34421]
[1754556729273,0.5059,3718.8,3718.7,0.53769]
[1754556729469,1.7432,3718.8,3718.7,18.88969]
[1754556730276,5.3329,3718.8,3718.7,18.88969]
[1754556738181,5.3329,3718.8,3718.7,18.88969]
[1754556738381,5.3329,3718.8,3718.7,0.53769]
[1754556739286,4.831,3718.8,3718.7,0.53769]
[1754556739483,5.3329,3718.8,3718.7,18.87769]
[1754556740985,4.9054,3718.8,3718.7,18.87769]
[1754556741380,5.3329,3718.8,3718.7,18.87769]
[1754556744387,4.9054,3718.8,3718.7,18.87769]
[1754556744588,5.3329,3718.8,3718.7,18.87769]
[1754556744778,3.5897,3718.8,3718.7,18.87769]
[1754556744979,3.899,3718.8,3718.7,18.87769]
[1754556745682,4.2069,3718.8,3718.7,18.87769]
[1754556747281,4.3995,3718.8,3718.7,18.87769]
[1754556747584,4.827,3718.8,3718.7,18.87769]
[1754556747785,3.899,3718.8,3718.7,18.87769]
[1754556748390,3.5897,3718.8,3718.7,18.87769]
[1754556749389,3.887,3718.8,3718.7,18.87769]
[1754556749787,1.23585,3718.8,3718.7,18.87769]
[1754556750086,0.52827,3719.2,3719.1,0.72574]
[1754556750290,0.52827,3719.2,3719.1,19.05674]
[1754556752489,1.7162,3720.0,3719.9,0.53752]
[1754556755494,2.24447817,3720.6,3720.5,0.53744]
[1754556756092,2.54177817,3720.6,3720.5,0.53744]
[1754556756393,1.7162,3720.6,3720.5,0.53744]
[1754556757297,1.7162,3720.1,3720.0,0.53751]
[1754556757492,1.7162,3720.1,3720.0,18.86751]
[1754556757693,1.7162,3720.1,3720.0,0.53751]
[1754556757893,1.7162,3720.1,3720.0,18.86751]
[1754556758594,0.42,3719.9,3719.7,0.53755]
[1754556758890,0.6955,3719.9,3719.8,18.346]
[1754556759198,1.4189,3719.9,3719.8,18.346]
[1754556759392,1.7162,3719.8,3719.7,0.53755]
[1754556759692,1.7162,3719.8,3719.7,18.88855]
[1754556763803,1.7162,3719.8,3719.7,0.53755]
[1754556764002,1.7162,3719.8,3719.7,18.88255]
[1754556764399,1.7162,3719.8,3719.7,18.88055]
[1754556766296,1.7162,3719.8,3719.7,19.33315]
[1754556767104,1.7162,3719.8,3719.7,0.99015]
[1754556767305,1.7162,3719.8,3719.7,19.32915]
[1754556770403,1.7162,3719.8,3719.7,0.99015]
[1754556770594,1.7162,3719.8,3719.7,18.87155]
[1754556771299,0.4957,3718.9,3718.8,0.1158]
[1754556771503,1.7162,3718.9,3718.8,19.46379]
[1754556771994,1.7162,3718.9,3718.8,19.91639]
[1754556773006,1.7162,3718.9,3718.8,1.58439]
[1754556773205,1.7162,3718.9,3718.8,19.91939]
[1754556780507,1.7162,3718.9,3718.8,0.53769]
[1754556780704,1.7162,3718.9,3718.8,18.86669]
[1754556781110,1.7162,3718.9,3718.8,0.53769]
[1754556781413,1.7162,3718.9,3718.8,18.86769]
[1754556781819,1.7162,3718.9,3718.8,18.33]
[1754556782514,0.6955,3718.9,3718.8,18.33]
[1754556782712,1.6909,3718.9,3718.8,18.33]
[1754556784204,0.9954,3718.8,3718.7,0.98549]
[1754556784401,1.6867,3718.8,3718.7,19.31549]
[1754556784608,1.6867,3718.8,3718.7,19.61179]
[1754556785113,1.6867,3718.8,3718.7,19.72739]
[1754556785415,1.6867,3718.8,3718.7,19.80029]
[1754556786117,1.6867,3718.8,3718.7,19.91689]
[1754556787819,1.6867,3718.8,3718.7,19.84399]
[1754556789114,1.6867,3718.8,3718.7,1.51399]
[1754556789424,1.6867,3718.8,3718.7,19.84399]
[1754556791219,1.6867,3718.8,3718.7,19.91689]
[1754556791422,2.22695651,3719.3,3719.2,1.58683]
[1754556791723,1.4027,3719.3,3719.2,19.91683]
[1754556792111,1.6867,3719.3,3719.2,19.91683]
[1754556795320,5.2764,3719.3,3719.2,19.91683]
[1754556796931,0.53768,3718.9,3718.3,0.53776]
[1754556797224,1.6867,3718.4,3718.3,1.58696]
[1754556797424,1.6867,3718.4,3718.3,19.91696]
[1754556800229,5.2764,3718.4,3718.3,19.91696]
[1754556808541,5.2764,3718.4,3718.3,18.86776]
[1754556810245,5.2764,3718.4,3718.3,19.31376]
[1754556810546,5.2764,3718.4,3718.3,19.43056]
[1754556810744,5.2764,3718.4,3718.3,19.50316]
[1754556810946,5.2764,3718.4,3718.3,19.43056]
[1754556811344,5.2764,3718.4,3718.3,19.31376]
[1754556813547,5.2764,3718.4,3718.3,19.59276]
[1754556814049,5.2764,3718.4,3718.3,19.89666]
[1754556814648,3.8817,3718.4,3718.3,19.89666]
[1754556814946,3.5897,3718.4,3718.3,19.96866]
[1754556815547,3.8832,3718.4,3718.3,19.96866]
[1754556816354,3.5897,3718.4,3718.3,19.96866]
[1754556816750,3.8832,3718.4,3718.3,19.96866]
[1754556819447,5.3439,3718.4,3718.3,19.89666]
[1754556819848,5.3439,3718.4,3718.3,18.86776]
[1754556820150,5.3439,3718.4,3718.3,19.89666]
[1754556822255,5.3439,3718.4,3718.3,19.70796]
[1754556822959,5.3439,3718.4,3718.3,19.78056]
[1754556823647,5.3439,3718.4,3718.3,19.89666]
[1754556830158,5.3439,3718.4,3718.3,18.33]
[1754556830360,5.3439,3718.4,3718.1,0.53778]
[1754556830361,0.7008,3718.2,3718.1,0.53778]
[1754556830555,0.7008,3718.2,3718.1,18.86678]
[1754556830556,1.7542,3718.2,3718.1,18.86678]
[1754556831049,1.7542,3718.2,3718.1,0.53778]
[1754556831255,1.7542,3718.2,3718.1,18.86678]
[1754556834062,1.7542,3718.2,3718.1,19.31278]
[1754556834260,1.7542,3718.2,3718.1,19.59178]
[1754556834261,1.2649,3718.2,3718.1,19.59178]
[1754556834458,0.753,3718.2,3718.1,19.59178]
[1754556835161,1.2649,3718.2,3718.1,19.59178]
[1754556835359,4.8546,3718.2,3718.1,18.98288]
[1754556835756,4.8546,3718.2,3718.1,19.70788]
[1754556837762,4.1016,3718.2,3718.1,18.98288]
[1754556838064,4.8546,3718.2,3718.1,19.78048]
[1754556839458,4.9059,3718.2,3718.1,19.89568]
[1754556839766,5.3306,3718.2,3718.1,19.89568]
[1754556840062,5.3118,3718.2,3718.1,19.89648]
[1754556840257,5.3118,3718.2,3718.1,19.89698]
[1754556841861,4.1912,3718.2,3718.1,19.89698]
[1754556842062,5.0111,3718.2,3718.1,19.89698]
[1754556842256,5.314,3718.2,3718.1,19.89698]
[1754556842650,3.5897,3718.2,3718.1,19.89698]
[1754556842855,3.8899,3718.2,3718.1,19.96928]
[1754556844161,4.3946,3718.2,3718.1,19.96928]
[1754556844361,4.8193,3718.2,3718.1,19.96928]
[1754556844659,5.0111,3718.2,3718.1,19.89698]
[1754556847165,5.314,3718.2,3718.1,19.89698]
[1754556848565,5.314,3718.2,3718.1,19.96928]
[1754556848766,5.314,3718.2,3718.1,19.89698]
[1754556852169,5.314,3718.2,3718.1,19.96928]
[1754556853069,5.314,3718.2,3718.1,19.89698]
[1754556855175,1.7243,3718.2,3718.1,19.89698]
[1754556860679,0.3002,3718.2,3718.1,19.89698]
[1754556860880,1.7243,3718.2,3718.1,19.89698]
[1754556864585,1.7243,3718.2,3718.1,19.82408]
[1754556866283,1.7243,3718.2,3718.1,19.70748]
[1754556866976,1.7243,3718.2,3718.1,19.89698]
[1754556874593,0.3002,3718.2,3718.1,19.96928]
[1754556875095,0.5938,3718.2,3718.1,19.96928]
[1754556875894,0.789,3718.2,3718.1,19.96928]
[1754556876095,1.4256,3718.2,3718.1,19.96928]
[1754556876296,1.7255,3718.2,3718.1,19.89698]
[1754556881797,0.7953,3718.2,3718.1,0.53778]
[1754556882102,0.7953,3718.2,3718.1,18.85778]
[1754556882103,1.7255,3718.2,3718.1,18.85778]
[1754556882499,1.7255,3718.2,3718.1,19.31648]
[1754556883305,1.7255,3718.2,3718.1,19.71428]
[1754556883605,1.7255,3718.2,3718.1,19.90408]
[1754556886712,1.7255,3718.2,3718.1,19.71428]
[1754556887104,1.7255,3718.2,3718.1,18.85778]
[1754556888816,1.706,3718.1,3718.0,0.53781]
[1754556889116,1.706,3718.1,3718.0,18.85681]
[1754556891815,0.7268,3717.8,3717.5,1.34473]
[1754556892115,1.706,3717.7,3717.6,18.85588]
[1754556892509,1.706,3717.7,3717.6,18.318]
[1754556892709,1.53583734,3717.7,3717.5,0.53788]
[1754556892916,1.53583734,3717.7,3715.9,43.5492482]
[1754556892917,0.1952,3717.3,3716.5,1.34508]
[1754556893116,1.706,3717.0,3716.9,0.53797]
[1754556896919,5.2957,3717.0,3716.9,0.53797]
[1754556902528,5.2957,3717.0,3716.9,1.28557]
[1754556902716,5.2957,3717.0,3716.9,1.47407]
[1754556904021,5.2957,3717.0,3716.9,1.28557]
[1754556904225,4.1643,3717.0,3716.9,1.66297]
[1754556904423,5.2741,3717.0,3716.9,1.59067]
[1754556905231,4.5107,3717.0,3716.9,1.40117]
[1754556905433,4.0871,3717.0,3716.9,0.65357]
[1754556906626,4.0871,3717.0,3716.9,0.53797]
[1754556907127,4.0871,3717.0,3716.9,0.65357]
[1754556907128,3.5897,3717.0,3716.9,0.65357]
[1754556907403,3.5897,3717.0,3716.9,0.72587]
[1754556907632,3.8814,3717.0,3716.9,0.72587]
[1754556907836,2.23918,3717.0,3716.9,0.72587]
[1754556908034,1.44751,3717.0,3716.9,0.72587]
[1754556908332,1.32572057,3718.2,3718.1,0.5378]
[1754556908736,0.82832057,3718.2,3718.1,0.5378]
[1754556908934,1.32572057,3718.2,3718.1,0.5378]
[1754556921545,0.2057,3717.6,3717.5,0.53789]
[1754556921841,0.4974,3717.6,3717.5,0.53789]
[1754556926050,1.2127,3717.6,3717.5,1.28549]
[1754556926454,3.31488551,3719.9,3717.5,1.28549]
[1754556926455,0.2917,3718.8,3718.3,0.3037]
[1754556926758,1.2127,3718.8,3718.7,1.28532]
[1754556927249,1.2127,3718.8,3718.7,0.98162]
[1754556928051,1.4015,3718.8,3718.7,4.18942]
[1754556928250,1.6844,3718.8,3718.7,4.18942]
[1754556928648,1.6844,3718.8,3718.7,3.74552]
[1754556932451,1.6844,3718.8,3718.7,4.17802]
[1754556934554,1.6844,3718.8,3718.7,4.46822]
[1754556934746,1.6844,3718.8,3718.7,4.54122]
[1754556935348,1.6844,3718.8,3718.7,4.65802]
[1754556937755,0.2917,3718.8,3718.7,4.65802]
[1754556937945,0.5866,3718.8,3718.7,4.65802]
[1754556938150,1.741,3718.8,3718.7,4.65802]
[1754556938457,1.741,3718.8,3718.7,4.46822]
[1754556939655,1.741,3718.8,3718.7,4.54122]
[1754556940549,1.2866,3718.8,3718.7,3.74552]
[1754556940757,1.741,3718.8,3718.7,3.74552]
[1754556941155,1.741,3718.8,3718.7,4.17802]
[1754556942259,1.741,3718.8,3718.7,3.74552]
[1754556942560,1.741,3718.8,3718.7,4.17802]
[1754556942754,1.741,3718.8,3718.7,3.74552]
[1754556942959,1.741,3718.8,3718.7,4.17802]
[1754556946251,1.741,3718.8,3718.7,3.74552]
[1754556953563,1.741,3718.8,3718.7,4.17802]
[1754556953966,1.741,3718.8,3718.7,3.74552]
[1754556954172,2.57236346,3718.8,3718.7,3.74552]
[1754556955577,2.57236346,3718.8,3718.7,4.65782]
[1754556956178,2.57236346,3718.8,3718.7,4.58492]
[1754556956576,2.57236346,3718.8,3718.7,4.17802]
[1754556956776,2.57236346,3718.8,3718.7,3.74552]
[1754556959278,1.741,3718.8,3718.7,3.74552]
[1754556959481,2.57349225,3718.8,3718.7,3.74552]
[1754556959980,2.57349225,3718.8,3718.7,4.18482]
[1754556960374,2.57349225,3718.8,3718.7,4.66562]
[1754556963676,0.83249225,3718.8,3718.7,4.66562]
[1754556963880,1.13459225,3718.8,3718.7,4.66562]
[1754556964277,1.42189225,3718.8,3718.7,4.66562]
[1754556964978,1.62299225,3718.8,3718.7,4.66562]
[1754556965184,2.07929225,3718.8,3718.7,4.66562]
[1754556966883,2.07929225,3718.8,3718.7,1.45782]
[1754556967081,0.83249225,3718.8,3718.7,4.66562]
[1754556967281,0.9676,3719.3,3719.2,0.4078]
[1754556967485,1.80033248,3719.3,3719.2,0.9201]
[1754556967874,2.55873248,3719.3,3719.2,0.9201]
[1754556968980,2.55873248,3719.3,3719.2,0.8471]
[1754556969786,2.55873248,3719.3,3719.2,0.9201]
[1754556972489,2.55873248,3719.3,3719.2,0.8471]
[1754556973478,2.55873248,3719.3,3719.1,3.74546]
[1754556973789,2.55873248,3719.2,3719.1,4.22626]
[1754556974188,2.55873248,3719.2,3719.1,4.66556]
[1754556978190,2.55873248,3719.2,3719.1,4.59256]
[1754556982089,2.55873248,3719.2,3719.1,0.53766]
[1754556982284,0.53766,3719.1,3719.0,0.53766]
[1754556982592,1.726,3718.8,3718.7,3.74552]
[1754556982889,2.55873248,3718.8,3718.7,4.18482]
[1754556983787,2.55873248,3718.8,3718.7,4.54842]
[1754556984689,2.55873248,3718.8,3718.7,4.66432]
[1754556985396,2.5586869,3718.8,3718.7,4.66432]
[1754556987998,2.5586869,3718.8,3718.7,3.74552]
[1754556988496,2.5586869,3718.8,3718.7,4.18482]
[1754556990793,2.5586869,3718.8,3718.7,3.74552]
[1754556991200,2.5586869,3718.8,3718.7,0.53772]
[1754556991394,0.4797,3718.6,3718.5,1.28583]
[1754556991698,2.5559869,3718.6,3718.5,1.28583]
[1754556991898,2.5559869,3718.6,3718.5,1.35833]
[1754556992098,2.5559869,3718.6,3718.5,1.47433]
[1754556992897,2.5559869,3718.6,3718.5,0.53773]
[1754556993296,2.5559869,3718.6,3718.5,0.99193]
[1754556993501,43.3559869,3718.6,3718.5,0.99193]
[1754556994703,43.3559869,3718.6,3718.5,1.35833]
[1754556995197,61.6589869,3718.6,3718.5,1.35833]
[1754556995394,61.6589869,3718.6,3718.5,0.53773]
[1754556995800,61.6589869,3718.6,3718.5,0.99193]
[1754556996194,43.3559869,3718.6,3718.5,1.47433]
[1754556996700,42.1004869,3718.6,3718.5,1.47433]
[1754556997002,0.2804,3719.0,3718.9,0.72619]
[1754556997400,0.583,3719.0,3718.9,0.72619]
[1754556997804,1.2278,3719.0,3718.9,0.72619]
[1754556998703,1.7233,3719.0,3718.9,0.72619]
[1754557002211,20.0253,3719.0,3718.9,0.72619]
[1754557005612,1.7233,3719.0,3718.9,0.72619]
[1754557005801,20.0243,3719.0,3718.9,0.72619]
[1754557007915,0.583,3718.9,3718.8,0.5377]
[1754557008302,1.2278,3718.9,3718.8,0.5377]
[1754557008711,41.64024,3719.3,3719.2,0.53764]
[1754557008912,20.57412817,3719.3,3719.2,0.53764]
[1754557009311,20.85452817,3719.3,3719.2,0.53764]
[1754557015616,2.55452817,3719.3,3719.2,0.53764]
[1754557015822,20.85252817,3719.3,3719.2,0.53764]
[1754557018418,2.55452817,3719.3,3719.2,0.53764]
[1754557018619,20.39512817,3719.3,3719.2,3.74544]
[1754557018920,20.39512817,3719.3,3719.2,3.74834]
[1754557019319,20.82102817,3719.3,3719.2,3.74834]
[1754557019521,20.82102817,3719.3,3719.2,3.74544]
[1754557019716,20.77591817,3719.3,3718.7,3.2078]
[1754557019924,1.3886,3718.8,3718.7,3.74552]